[Event "Titled Tuesday Blitz January 25 2022"]
[White "Samunenkov, Ihor"]
[Black "Azadaliyev, Jahandar"]
[WhiteFideId "14187086"]
[BlackFideId "13425811"]
[WhiteElo "2406"]
[BlackElo "1795"]
[Result "1/2-1/2"]
[Round "11"]
[TimeControl "180+1"]
[Date "2022.01.26"]
[WhiteClock "0:00:02"]
[BlackClock "0:00:02"]

1. d4 {[%clk 0:03:00]}  Nf6 {[%clk 0:02:59]} 2. c4 {[%clk 0:03:00]}  e6 {[%clk 0:02:58]} 3. Nc3 {[%clk 0:03:00]}  Bb4 {[%clk 0:02:54]} 4. e3 {[%clk 0:03:00]}  O-O {[%clk 0:02:54]} 5. Bd2 {[%clk 0:03:00]}  d5 {[%clk 0:02:53]} 6. Nf3 {[%clk 0:03:00]}  Nbd7 {[%clk 0:02:52]} 7. cxd5 {[%clk 0:02:54]}  exd5 {[%clk 0:02:48]} 8. Bd3 {[%clk 0:02:36]}  Re8 {[%clk 0:02:48]} 9. O-O {[%clk 0:02:35]}  c6 {[%clk 0:02:48]} 10. Qc2 {[%clk 0:02:28]}  Nf8 {[%clk 0:02:47]} 11. Ne5 {[%clk 0:02:14]}  c5 {[%clk 0:02:44]} 12. a3 {[%clk 0:01:39]}  Ba5 {[%clk 0:02:42]} 13. Bb5 {[%clk 0:01:28]}  Re7 {[%clk 0:02:36]} 14. Ne2 {[%clk 0:01:01]}  c4 {[%clk 0:02:27]} 15. Ba4 {[%clk 0:00:38]}  Bxd2 {[%clk 0:02:21]} 16. Qxd2 {[%clk 0:00:38]}  Ne4 {[%clk 0:02:22]} 17. Qd1 {[%clk 0:00:38]}  Bf5 {[%clk 0:02:17]} 18. Bc2 {[%clk 0:00:38]}  Bg6 {[%clk 0:02:16]} 19. Nf4 {[%clk 0:00:38]}  Qd6 {[%clk 0:02:13]} 20. Nfxg6 {[%clk 0:00:36]}  Nxg6 {[%clk 0:02:11]} 21. Bxe4 {[%clk 0:00:37]}  dxe4 {[%clk 0:02:07]} 22. Nxc4 {[%clk 0:00:37]}  Qd5 {[%clk 0:02:07]} 23. Nd2 {[%clk 0:00:36]}  Qg5 {[%clk 0:02:06]} 24. Kh1 {[%clk 0:00:29]}  Nh4 {[%clk 0:02:05]} 25. Rg1 {[%clk 0:00:26]}  Qf5 {[%clk 0:02:02]} 26. Qe2 {[%clk 0:00:24]}  Re6 {[%clk 0:02:02]} 27. Rac1 {[%clk 0:00:22]}  Rh6 {[%clk 0:02:00]} 28. Rc5 {[%clk 0:00:22]}  Qe6 {[%clk 0:01:59]} 29. Re5 {[%clk 0:00:21]}  Qd7 {[%clk 0:01:49]} 30. Rxe4 {[%clk 0:00:21]}  Qd5 {[%clk 0:01:31]} 31. Re5 {[%clk 0:00:20]}  Qd7 {[%clk 0:01:28]} 32. Nf3 {[%clk 0:00:19]}  Ng6 {[%clk 0:01:27]} 33. Rc5 {[%clk 0:00:19]}  Re8 {[%clk 0:01:26]} 34. Rgc1 {[%clk 0:00:18]}  Nf4 {[%clk 0:01:26]} 35. Qb5 {[%clk 0:00:13]}  Qxb5 {[%clk 0:01:20]} 36. Rxb5 {[%clk 0:00:13]}  Nd3 {[%clk 0:01:20]} 37. Rc2 {[%clk 0:00:14]}  Rc6 {[%clk 0:01:15]} 38. Rxc6 {[%clk 0:00:09]}  bxc6 {[%clk 0:01:16]} 39. Rb7 {[%clk 0:00:08]}  Nxf2+ {[%clk 0:01:15]} 40. Kg1 {[%clk 0:00:08]}  Nd1 {[%clk 0:01:15]} 41. Ne5 {[%clk 0:00:05]}  f6 {[%clk 0:01:16]} 42. Nxc6 {[%clk 0:00:05]}  Rxe3 {[%clk 0:01:16]} 43. h3 {[%clk 0:00:03]}  Re2 {[%clk 0:01:15]} 44. d5 {[%clk 0:00:03]}  Rd2 {[%clk 0:01:13]} 45. Rxa7 {[%clk 0:00:02]}  Ne3 {[%clk 0:01:12]} 46. Ne7+ {[%clk 0:00:02]}  Kf8 {[%clk 0:01:11]} 47. g4 {[%clk 0:00:02]}  Rxb2 {[%clk 0:01:03]} 48. d6 {[%clk 0:00:02]}  Rg2+ {[%clk 0:01:01]} 49. Kh1 {[%clk 0:00:02]}  Rd2 {[%clk 0:01:02]} 50. Nc6 {[%clk 0:00:01]}  Rxd6 {[%clk 0:01:01]} 51. Nb4 {[%clk 0:00:01]}  Rd2 {[%clk 0:01:01]} 52. Rc7 {[%clk 0:00:01]}  Nd1 {[%clk 0:00:59]} 53. a4 {[%clk 0:00:01]}  Nf2+ {[%clk 0:00:59]} 54. Kg2 {[%clk 0:00:02]}  Nxg4+ {[%clk 0:01:00]} 55. Kg3 {[%clk 0:00:02]}  Ne5 {[%clk 0:01:00]} 56. a5 {[%clk 0:00:02]}  Rd4 {[%clk 0:00:58]} 57. a6 {[%clk 0:00:01]}  Rxb4 {[%clk 0:00:39]} 58. a7 {[%clk 0:00:01]}  Rb3+ {[%clk 0:00:39]} 59. Kg2 {[%clk 0:00:01]}  Rb2+ {[%clk 0:00:40]} 60. Kf1 {[%clk 0:00:02]}  Ra2 {[%clk 0:00:38]} 61. Rc8+ {[%clk 0:00:02]}  Kf7 {[%clk 0:00:39]} 62. a8=Q {[%clk 0:00:03]}  Rxa8 {[%clk 0:00:39]} 63. Rxa8 {[%clk 0:00:04]}  Kg6 {[%clk 0:00:39]} 64. Kg2 {[%clk 0:00:04]}  h6 {[%clk 0:00:39]} 65. Kg3 {[%clk 0:00:05]}  Kf5 {[%clk 0:00:40]} 66. Ra7 {[%clk 0:00:04]}  g5 {[%clk 0:00:40]} 67. Ra5 {[%clk 0:00:04]}  Kg6 {[%clk 0:00:38]} 68. h4 {[%clk 0:00:04]}  Nf7 {[%clk 0:00:38]} 69. hxg5 {[%clk 0:00:04]}  hxg5 {[%clk 0:00:39]} 70. Kg4 {[%clk 0:00:04]}  f5+ {[%clk 0:00:39]} 71. Kg3 {[%clk 0:00:04]}  Nh6 {[%clk 0:00:35]} 72. Rb5 {[%clk 0:00:04]}  Kh5 {[%clk 0:00:30]} 73. Ra5 {[%clk 0:00:04]}  f4+ {[%clk 0:00:30]} 74. Kh3 {[%clk 0:00:04]}  Nf7 {[%clk 0:00:26]} 75. Rb5 {[%clk 0:00:04]}  Nd6 {[%clk 0:00:27]} 76. Rd5 {[%clk 0:00:04]}  Ne4 {[%clk 0:00:27]} 77. Re5 {[%clk 0:00:03]}  Nf2+ {[%clk 0:00:26]} 78. Kg2 {[%clk 0:00:04]}  Nd3 {[%clk 0:00:26]} 79. Rd5 {[%clk 0:00:04]}  Ne1+ {[%clk 0:00:26]} 80. Kf2 {[%clk 0:00:04]}  Nc2 {[%clk 0:00:26]} 81. Kf3 {[%clk 0:00:03]}  Ne3 {[%clk 0:00:26]} 82. Re5 {[%clk 0:00:02]}  Kh4 {[%clk 0:00:24]} 83. Re8 {[%clk 0:00:03]}  Kh5 {[%clk 0:00:23]} 84. Rh8+ {[%clk 0:00:03]}  Kg6 {[%clk 0:00:24]} 85. Rg8+ {[%clk 0:00:03]}  Kf6 {[%clk 0:00:24]} 86. Rf8+ {[%clk 0:00:03]}  Kg7 {[%clk 0:00:24]} 87. Ra8 {[%clk 0:00:03]}  Kg6 {[%clk 0:00:22]} 88. Ra6+ {[%clk 0:00:03]}  Kh5 {[%clk 0:00:23]} 89. Ra8 {[%clk 0:00:04]}  Nf5 {[%clk 0:00:23]} 90. Rh8+ {[%clk 0:00:04]}  Nh6 {[%clk 0:00:24]} 91. Rh7 {[%clk 0:00:03]}  Kg6 {[%clk 0:00:24]} 92. Ra7 {[%clk 0:00:03]}  Nf7 {[%clk 0:00:23]} 93. Ra6+ {[%clk 0:00:02]}  Kf5 {[%clk 0:00:23]} 94. Ra5+ {[%clk 0:00:03]}  Ne5+ {[%clk 0:00:24]} 95. Kf2 {[%clk 0:00:03]}  g4 {[%clk 0:00:24]} 96. Ra8 {[%clk 0:00:04]}  g3+ {[%clk 0:00:24]} 97. Kg2 {[%clk 0:00:04]}  Ke4 {[%clk 0:00:24]} 98. Ra4+ {[%clk 0:00:04]}  Ke3 {[%clk 0:00:24]} 99. Ra3+ {[%clk 0:00:04]}  Nd3 {[%clk 0:00:25]} 100. Rb3 {[%clk 0:00:04]}  Ke2 {[%clk 0:00:24]} 101. Ra3 {[%clk 0:00:04]}  Ne1+ {[%clk 0:00:24]} 102. Kg1 {[%clk 0:00:04]}  f3 {[%clk 0:00:22]} 103. Ra2+ {[%clk 0:00:04]}  Ke3 {[%clk 0:00:22]} 104. Ra3+ {[%clk 0:00:03]}  Nd3 {[%clk 0:00:20]} 105. Ra8 {[%clk 0:00:03]}  Nf4 {[%clk 0:00:17]} 106. Ra3+ {[%clk 0:00:03]}  Nd3 {[%clk 0:00:15]} 107. Ra8 {[%clk 0:00:03]}  Kd2 {[%clk 0:00:12]} 108. Ra2+ {[%clk 0:00:03]}  Kc3 {[%clk 0:00:10]} 109. Ra3+ {[%clk 0:00:04]}  Kd4 {[%clk 0:00:09]} 110. Ra4+ {[%clk 0:00:04]}  Ke5 {[%clk 0:00:10]} 111. Ra8 {[%clk 0:00:04]}  Ke4 {[%clk 0:00:09]} 112. Re8+ {[%clk 0:00:04]}  Kf4 {[%clk 0:00:10]} 113. Rf8+ {[%clk 0:00:05]}  Ke3 {[%clk 0:00:10]} 114. Re8+ {[%clk 0:00:05]}  Kd2 {[%clk 0:00:11]} 115. Rg8 {[%clk 0:00:02]}  Ke2 {[%clk 0:00:06]} 116. Re8+ {[%clk 0:00:02]}  Kd1 {[%clk 0:00:06]} 117. Rg8 {[%clk 0:00:02]}  Ke1 {[%clk 0:00:05]} 118. Re8+ {[%clk 0:00:02]}  Kd1 {[%clk 0:00:05]} 119. Rg8 {[%clk 0:00:03]}  f2+ {[%clk 0:00:04]} 120. Kf1 {[%clk 0:00:03]}  Kd2 {[%clk 0:00:04]} 121. Rxg3 {[%clk 0:00:03]}  Kc2 {[%clk 0:00:04]} 122. Re3 {[%clk 0:00:03]}  Kd2 {[%clk 0:00:05]} 123. Re8 {[%clk 0:00:04]}  Kc2 {[%clk 0:00:05]} 124. Ke2 {[%clk 0:00:05]}  Kc3 {[%clk 0:00:04]} 125. Rc8+ {[%clk 0:00:05]}  Kd4 {[%clk 0:00:03]} 126. Rd8+ {[%clk 0:00:05]}  Kc4 {[%clk 0:00:03]} 127. Rf8 {[%clk 0:00:04]}  Kc3 {[%clk 0:00:03]} 128. Ke3 {[%clk 0:00:05]}  Kc2 {[%clk 0:00:03]} 129. Rc8+ {[%clk 0:00:04]}  Kd1 {[%clk 0:00:03]} 130. Rf8 {[%clk 0:00:02]}  Ke1 {[%clk 0:00:03]} 131. Ra8 {[%clk 0:00:02]}  Nc1 {[%clk 0:00:02]} 132. Rf8 {[%clk 0:00:01]}  f1=N+ {[%clk 0:00:02]} 133. Rxf1+ {[%clk 0:00:02]}  Kxf1 {[%clk 0:00:02]} 1/2-1/2


[Site "https://www.chess.com"]

[Event "Titled Tuesday Blitz January 25 2022"]
[White "Sapunov, Evgeny"]
[Black "Cunjalo, Faris"]
[WhiteFideId "4126661"]
[BlackFideId "14410710"]
[WhiteElo "2470"]
[BlackElo "2263"]
[Result "1/2-1/2"]
[Round "11"]
[TimeControl "180+1"]
[Date "2022.01.26"]
[WhiteClock "0:01:00"]
[BlackClock "0:01:18"]

1. c4 {[%clk 0:02:58]}  e6 {[%clk 0:02:59]} 2. Nf3 {[%clk 0:02:57]}  d5 {[%clk 0:03:00]} 3. d4 {[%clk 0:02:58]}  Nf6 {[%clk 0:02:57]} 4. Nc3 {[%clk 0:02:58]}  Bb4 {[%clk 0:02:57]} 5. Qa4+ {[%clk 0:02:57]}  Nc6 {[%clk 0:02:57]} 6. Bg5 {[%clk 0:02:58]}  h6 {[%clk 0:02:55]} 7. Bxf6 {[%clk 0:02:58]}  Qxf6 {[%clk 0:02:56]} 8. e3 {[%clk 0:02:59]}  O-O {[%clk 0:02:55]} 9. Rc1 {[%clk 0:02:58]}  a6 {[%clk 0:02:54]} 10. a3 {[%clk 0:02:12]}  Bxc3+ {[%clk 0:02:52]} 11. Rxc3 {[%clk 0:02:10]}  Rd8 {[%clk 0:02:53]} 12. Qc2 {[%clk 0:02:04]}  Ne7 {[%clk 0:02:40]} 13. Bd3 {[%clk 0:01:57]}  c6 {[%clk 0:02:37]} 14. O-O {[%clk 0:01:56]}  dxc4 {[%clk 0:02:30]} 15. Rxc4 {[%clk 0:01:53]}  Bd7 {[%clk 0:02:28]} 16. Rc1 {[%clk 0:01:51]}  Nd5 {[%clk 0:02:28]} 17. Be4 {[%clk 0:01:45]}  Be8 {[%clk 0:02:26]} 18. Ne5 {[%clk 0:01:44]}  Qe7 {[%clk 0:02:25]} 19. Qb3 {[%clk 0:01:42]}  Rab8 {[%clk 0:02:22]} 20. R4c2 {[%clk 0:01:41]}  Nf6 {[%clk 0:02:19]} 21. Bf3 {[%clk 0:01:41]}  Nd5 {[%clk 0:02:19]} 22. g3 {[%clk 0:01:40]}  Qd6 {[%clk 0:02:17]} 23. Kg2 {[%clk 0:01:39]}  Qe7 {[%clk 0:02:18]} 24. Qc4 {[%clk 0:01:35]}  Kf8 {[%clk 0:02:14]} 25. b4 {[%clk 0:01:35]}  Rbc8 {[%clk 0:02:13]} 26. Qc5 {[%clk 0:01:35]}  Rc7 {[%clk 0:02:09]} 27. h4 {[%clk 0:01:34]}  f6 {[%clk 0:02:08]} 28. Nd3 {[%clk 0:01:34]}  Bg6 {[%clk 0:02:09]} 29. e4 {[%clk 0:01:30]}  Kf7 {[%clk 0:01:50]} 30. Rd2 {[%clk 0:01:27]}  Qxc5 {[%clk 0:01:50]} 31. Nxc5 {[%clk 0:01:25]}  Ne7 {[%clk 0:01:51]} 32. Rcd1 {[%clk 0:01:23]}  h5 {[%clk 0:01:48]} 33. Kf1 {[%clk 0:01:23]}  Nc8 {[%clk 0:01:46]} 34. Ke2 {[%clk 0:01:22]}  Nb6 {[%clk 0:01:47]} 35. Rc1 {[%clk 0:01:20]}  Nd7 {[%clk 0:01:44]} 36. Nb3 {[%clk 0:01:19]}  Ke7 {[%clk 0:01:41]} 37. Ke3 {[%clk 0:01:19]}  Bf7 {[%clk 0:01:40]} 38. Na5 {[%clk 0:01:18]}  Nb6 {[%clk 0:01:38]} 39. Be2 {[%clk 0:01:17]}  Kf8 {[%clk 0:01:36]} 40. f4 {[%clk 0:01:17]}  Rcd7 {[%clk 0:01:36]} 41. Rcd1 {[%clk 0:01:17]}  Bg6 {[%clk 0:01:35]} 42. Bf3 {[%clk 0:01:15]}  Ke7 {[%clk 0:01:36]} 43. Be2 {[%clk 0:01:13]}  Ke8 {[%clk 0:01:32]} 44. Nb3 {[%clk 0:01:13]}  Na4 {[%clk 0:01:32]} 45. Nc5 {[%clk 0:01:13]}  Nxc5 {[%clk 0:01:32]} 46. bxc5 {[%clk 0:01:13]}  f5 {[%clk 0:01:15]} 47. e5 {[%clk 0:01:08]}  Rc7 {[%clk 0:01:15]} 48. Rb2 {[%clk 0:01:08]}  Rdd7 {[%clk 0:01:16]} 49. Rdb1 {[%clk 0:01:09]}  Bf7 {[%clk 0:01:15]} 50. Bc4 {[%clk 0:01:09]}  g6 {[%clk 0:01:15]} 51. a4 {[%clk 0:01:09]}  Ke7 {[%clk 0:01:15]} 52. Rb6 {[%clk 0:01:08]}  Kd8 {[%clk 0:01:13]} 53. Rd1 {[%clk 0:01:08]}  Kc8 {[%clk 0:01:11]} 54. Kd3 {[%clk 0:01:08]}  Kb8 {[%clk 0:01:11]} 55. Kc3 {[%clk 0:01:08]}  Ka7 {[%clk 0:01:11]} 56. Rb2 {[%clk 0:01:08]}  Re7 {[%clk 0:01:12]} 57. Rbd2 {[%clk 0:01:08]}  Red7 {[%clk 0:01:12]} 58. Kb4 {[%clk 0:01:08]}  Rc8 {[%clk 0:01:13]} 59. Ka5 {[%clk 0:01:09]}  Rcd8 {[%clk 0:01:14]} 60. Bb3 {[%clk 0:01:08]}  Bg8 {[%clk 0:01:13]} 61. Bc4 {[%clk 0:01:08]}  Bf7 {[%clk 0:01:14]} 62. Kb4 {[%clk 0:01:08]}  Bg8 {[%clk 0:01:13]} 63. Kc3 {[%clk 0:01:09]}  Bf7 {[%clk 0:01:14]} 64. Rb2 {[%clk 0:01:09]}  Bg8 {[%clk 0:01:15]} 65. Rdb1 {[%clk 0:01:09]}  Bf7 {[%clk 0:01:13]} 66. a5 {[%clk 0:01:09]}  Bg8 {[%clk 0:01:12]} 67. Rd2 {[%clk 0:01:08]}  Bf7 {[%clk 0:01:13]} 68. Rbd1 {[%clk 0:01:08]}  Bg8 {[%clk 0:01:13]} 69. Rg2 {[%clk 0:01:08]}  Bf7 {[%clk 0:01:14]} 70. Rgg1 {[%clk 0:01:08]}  Bg8 {[%clk 0:01:14]} 71. Rd2 {[%clk 0:01:09]}  Bf7 {[%clk 0:01:15]} 72. Rb1 {[%clk 0:01:09]}  Rc7 {[%clk 0:01:16]} 73. Rb6 {[%clk 0:01:09]}  Rcd7 {[%clk 0:01:16]} 74. Bb3 {[%clk 0:01:10]}  Bg8 {[%clk 0:01:17]} 75. Ba4 {[%clk 0:01:10]}  Rc7 {[%clk 0:01:16]} 76. Kb4 {[%clk 0:01:09]}  Bf7 {[%clk 0:01:17]} 77. Kc3 {[%clk 0:01:08]}  Bg8 {[%clk 0:01:17]} 78. Kc4 {[%clk 0:01:09]}  Bf7 {[%clk 0:01:18]} 79. Rdb2 {[%clk 0:01:09]}  Rcd7 {[%clk 0:01:17]} 80. Rd2 {[%clk 0:01:09]}  Rc7 {[%clk 0:01:18]} 81. Kc3 {[%clk 0:01:09]}  Be8 {[%clk 0:01:18]} 82. Rd1 {[%clk 0:01:00]}  Bf7 {[%clk 0:01:18]} 83. Rd2 {[%clk 0:01:00]} 1/2-1/2


[Site "https://www.chess.com"]

[Event "Titled Tuesday Blitz January 25 2022"]
[White "Seo, Jung Min"]
[Black "Willow, Jonah B"]
[WhiteFideId "1734687"]
[BlackFideId "438804"]
[WhiteElo "2401"]
[BlackElo "2261"]
[Result "0-1"]
[Round "11"]
[TimeControl "180+1"]
[Date "2022.01.26"]
[WhiteClock "0:00:11"]
[BlackClock "0:00:28"]

1. d4 {[%clk 0:03:00]}  Nf6 {[%clk 0:02:57]} 2. Nf3 {[%clk 0:03:01]}  e6 {[%clk 0:02:58]} 3. c4 {[%clk 0:03:01]}  c5 {[%clk 0:02:58]} 4. d5 {[%clk 0:03:01]}  exd5 {[%clk 0:02:59]} 5. cxd5 {[%clk 0:03:02]}  d6 {[%clk 0:03:00]} 6. Nc3 {[%clk 0:03:01]}  g6 {[%clk 0:02:59]} 7. h3 {[%clk 0:03:00]}  Bg7 {[%clk 0:02:59]} 8. e4 {[%clk 0:03:01]}  O-O {[%clk 0:02:59]} 9. Nd2 {[%clk 0:02:56]}  Re8 {[%clk 0:02:57]} 10. Be2 {[%clk 0:02:56]}  a6 {[%clk 0:02:52]} 11. a4 {[%clk 0:02:36]}  Nbd7 {[%clk 0:02:52]} 12. O-O {[%clk 0:02:35]}  Rb8 {[%clk 0:02:51]} 13. Re1 {[%clk 0:02:34]}  h6 {[%clk 0:02:31]} 14. Bf1 {[%clk 0:02:34]}  g5 {[%clk 0:02:29]} 15. Nc4 {[%clk 0:02:33]}  Ne5 {[%clk 0:02:23]} 16. Nxe5 {[%clk 0:02:33]}  Rxe5 {[%clk 0:02:24]} 17. f4 {[%clk 0:02:33]}  gxf4 {[%clk 0:02:24]} 18. Bxf4 {[%clk 0:02:33]}  Nd7 {[%clk 0:02:20]} 19. Bxe5 {[%clk 0:02:27]}  Nxe5 {[%clk 0:02:20]} 20. Qh5 {[%clk 0:02:24]}  Qb6 {[%clk 0:02:10]} 21. Rab1 {[%clk 0:02:12]}  Bd7 {[%clk 0:02:09]} 22. Kh1 {[%clk 0:02:08]}  Re8 {[%clk 0:02:09]} 23. Be2 {[%clk 0:02:06]}  c4 {[%clk 0:02:05]} 24. Rf1 {[%clk 0:02:05]}  Qe3 {[%clk 0:01:58]} 25. Rbd1 {[%clk 0:01:50]}  b5 {[%clk 0:01:57]} 26. axb5 {[%clk 0:01:50]}  axb5 {[%clk 0:01:58]} 27. Bg4 {[%clk 0:01:30]}  Bxg4 {[%clk 0:01:53]} 28. hxg4 {[%clk 0:01:30]}  b4 {[%clk 0:01:51]} 29. Nb5 {[%clk 0:01:29]}  Rd8 {[%clk 0:00:58]} 30. Nd4 {[%clk 0:00:56]}  Qxe4 {[%clk 0:00:58]} 31. Nc6 {[%clk 0:00:55]}  Rd7 {[%clk 0:00:49]} 32. Rde1 {[%clk 0:00:18]}  Qxd5 {[%clk 0:00:48]} 33. Nxb4 {[%clk 0:00:16]}  Qb7 {[%clk 0:00:44]} 34. Nc2 {[%clk 0:00:16]}  Qxb2 {[%clk 0:00:45]} 35. Ne3 {[%clk 0:00:16]}  Qd4 {[%clk 0:00:30]} 36. g5 {[%clk 0:00:13]}  hxg5 {[%clk 0:00:31]} 37. Qxg5 {[%clk 0:00:13]}  f6 {[%clk 0:00:28]} 38. Qg6 {[%clk 0:00:11]}  Nxg6 {[%clk 0:00:28]} 0-1


[Site "https://www.chess.com"]

[Event "Titled Tuesday Blitz January 25 2022"]
[White "Shvedova, Alexandra"]
[Black "Sumaneev, Dmitry"]
[WhiteFideId "54154782"]
[BlackFideId "4125312"]
[WhiteElo "1920"]
[BlackElo "2529"]
[Result "1-0"]
[Round "11"]
[TimeControl "180+1"]
[Date "2022.01.26"]
[WhiteClock "0:00:12"]
[BlackClock "0:00:02"]

1. e4 {[%clk 0:03:00]}  e6 {[%clk 0:02:59]} 2. d4 {[%clk 0:03:00]}  d5 {[%clk 0:03:00]} 3. Nd2 {[%clk 0:03:01]}  Nf6 {[%clk 0:02:59]} 4. e5 {[%clk 0:03:00]}  Nfd7 {[%clk 0:03:00]} 5. Bd3 {[%clk 0:03:00]}  c5 {[%clk 0:03:00]} 6. c3 {[%clk 0:03:00]}  Nc6 {[%clk 0:03:01]} 7. Ngf3 {[%clk 0:03:01]}  a5 {[%clk 0:02:59]} 8. O-O {[%clk 0:02:58]}  cxd4 {[%clk 0:02:58]} 9. cxd4 {[%clk 0:02:58]}  Qb6 {[%clk 0:02:59]} 10. Re1 {[%clk 0:02:55]}  Nxd4 {[%clk 0:02:58]} 11. Nxd4 {[%clk 0:02:34]}  Qxd4 {[%clk 0:02:40]} 12. Nf3 {[%clk 0:02:34]}  Qb6 {[%clk 0:02:40]} 13. Qa4 {[%clk 0:02:26]}  Qb4 {[%clk 0:02:28]} 14. Qc2 {[%clk 0:02:26]}  Nc5 {[%clk 0:02:15]} 15. Bxh7 {[%clk 0:02:20]}  Bd7 {[%clk 0:02:04]} 16. Bd2 {[%clk 0:02:12]}  Qg4 {[%clk 0:01:57]} 17. Bd3 {[%clk 0:02:04]}  Nxd3 {[%clk 0:01:44]} 18. Qxd3 {[%clk 0:02:04]}  Be7 {[%clk 0:01:38]} 19. Rac1 {[%clk 0:02:02]}  Bd8 {[%clk 0:01:25]} 20. Nd4 {[%clk 0:01:54]}  g6 {[%clk 0:01:18]} 21. h3 {[%clk 0:01:51]}  Qh5 {[%clk 0:01:16]} 22. Nb5 {[%clk 0:01:48]}  Kf8 {[%clk 0:01:10]} 23. Nd6 {[%clk 0:01:46]}  b6 {[%clk 0:01:02]} 24. Qd4 {[%clk 0:01:39]}  Kg7 {[%clk 0:01:00]} 25. Rc3 {[%clk 0:01:27]}  Rh7 {[%clk 0:00:19]} 26. Rf3 {[%clk 0:01:25]}  Kg8 {[%clk 0:00:19]} 27. Rc1 {[%clk 0:01:22]}  Ra7 {[%clk 0:00:18]} 28. Rfc3 {[%clk 0:00:55]}  Kg7 {[%clk 0:00:16]} 29. f4 {[%clk 0:00:33]}  Qh4 {[%clk 0:00:15]} 30. Be1 {[%clk 0:00:31]}  Qe7 {[%clk 0:00:13]} 31. g4 {[%clk 0:00:24]}  Kg8 {[%clk 0:00:12]} 32. f5 {[%clk 0:00:22]}  exf5 {[%clk 0:00:09]} 33. gxf5 {[%clk 0:00:22]}  gxf5 {[%clk 0:00:08]} 34. Qxd5 {[%clk 0:00:18]}  Be6 {[%clk 0:00:07]} 35. Qg2+ {[%clk 0:00:17]}  Rg7 {[%clk 0:00:06]} 36. Rg3 {[%clk 0:00:17]}  Rxg3 {[%clk 0:00:06]} 37. Qxg3+ {[%clk 0:00:17]}  Qg5 {[%clk 0:00:04]} 38. Qxg5+ {[%clk 0:00:16]}  Bxg5 {[%clk 0:00:05]} 39. Rc3 {[%clk 0:00:13]}  Kf8 {[%clk 0:00:03]} 40. b3 {[%clk 0:00:13]}  Re7 {[%clk 0:00:01]} 41. Bg3 {[%clk 0:00:10]}  f4 {[%clk 0:00:01]} 42. Bf2 {[%clk 0:00:11]}  Kg7 {[%clk 0:00:01]} 43. Bxb6 {[%clk 0:00:10]}  Kg6 {[%clk 0:00:02]} 44. Bd4 {[%clk 0:00:10]}  Kh5 {[%clk 0:00:01]} 45. a3 {[%clk 0:00:10]}  Kh4 {[%clk 0:00:01]} 46. b4 {[%clk 0:00:10]}  axb4 {[%clk 0:00:01]} 47. axb4 {[%clk 0:00:11]}  Bxh3 {[%clk 0:00:02]} 48. b5 {[%clk 0:00:12]}  Bg4 {[%clk 0:00:02]} 49. b6 {[%clk 0:00:12]} 1-0


[Site "https://www.chess.com"]

[Event "Titled Tuesday Blitz January 25 2022"]
[White "Siva Mahadevan"]
[Black "Erdogdu, Mert"]
[WhiteFideId "25043153"]
[BlackFideId "6301495"]
[WhiteElo "2203"]
[BlackElo "2485"]
[Result "1-0"]
[Round "11"]
[TimeControl "180+1"]
[Date "2022.01.26"]
[WhiteClock "0:00:36"]
[BlackClock "0:00:03"]

1. e4 {[%clk 0:02:59]}  c5 {[%clk 0:02:56]} 2. Nf3 {[%clk 0:02:59]}  d6 {[%clk 0:02:56]} 3. d4 {[%clk 0:03:00]}  cxd4 {[%clk 0:02:57]} 4. Nxd4 {[%clk 0:03:00]}  Nf6 {[%clk 0:02:57]} 5. Nc3 {[%clk 0:03:01]}  a6 {[%clk 0:02:57]} 6. Bg5 {[%clk 0:03:01]}  e6 {[%clk 0:02:58]} 7. f4 {[%clk 0:03:02]}  Qb6 {[%clk 0:02:58]} 8. Qd2 {[%clk 0:03:02]}  Nc6 {[%clk 0:02:55]} 9. Bxf6 {[%clk 0:03:00]}  gxf6 {[%clk 0:02:56]} 10. Nb3 {[%clk 0:03:01]}  Bd7 {[%clk 0:02:56]} 11. O-O-O {[%clk 0:03:01]}  O-O-O {[%clk 0:02:56]} 12. Be2 {[%clk 0:03:02]}  h5 {[%clk 0:02:56]} 13. Rhf1 {[%clk 0:03:02]}  Kb8 {[%clk 0:02:48]} 14. Rf3 {[%clk 0:03:02]}  Be7 {[%clk 0:02:19]} 15. Bf1 {[%clk 0:03:00]}  Bc8 {[%clk 0:02:14]} 16. Kb1 {[%clk 0:03:00]}  Rdg8 {[%clk 0:02:14]} 17. Rd3 {[%clk 0:02:58]}  h4 {[%clk 0:02:08]} 18. a3 {[%clk 0:02:49]}  Qc7 {[%clk 0:02:07]} 19. Na2 {[%clk 0:02:39]}  Rg4 {[%clk 0:02:00]} 20. Nb4 {[%clk 0:02:36]}  Nxb4 {[%clk 0:01:58]} 21. axb4 {[%clk 0:02:37]}  f5 {[%clk 0:01:42]} 22. exf5 {[%clk 0:02:28]}  d5 {[%clk 0:01:36]} 23. fxe6 {[%clk 0:02:25]}  fxe6 {[%clk 0:01:37]} 24. g3 {[%clk 0:02:23]}  hxg3 {[%clk 0:01:37]} 25. hxg3 {[%clk 0:02:24]}  Rhg8 {[%clk 0:01:36]} 26. Qf2 {[%clk 0:02:21]}  Bxb4 {[%clk 0:01:33]} 27. Bh3 {[%clk 0:02:18]}  R4g7 {[%clk 0:01:31]} 28. Nd4 {[%clk 0:02:18]}  Bc5 {[%clk 0:01:22]} 29. Rc3 {[%clk 0:02:15]}  Qb6 {[%clk 0:01:19]} 30. Rb3 {[%clk 0:02:15]}  Qd6 {[%clk 0:01:18]} 31. Qe1 {[%clk 0:02:11]}  Rh8 {[%clk 0:01:14]} 32. Bxe6 {[%clk 0:01:52]}  Re8 {[%clk 0:00:57]} 33. Qc3 {[%clk 0:01:52]}  Rc7 {[%clk 0:00:48]} 34. Bxc8 {[%clk 0:01:52]}  Rexc8 {[%clk 0:00:47]} 35. Nf5 {[%clk 0:01:50]}  Qe6 {[%clk 0:00:43]} 36. Qd3 {[%clk 0:01:51]}  d4 {[%clk 0:00:37]} 37. g4 {[%clk 0:01:49]}  Ba7 {[%clk 0:00:36]} 38. Rc1 {[%clk 0:01:38]}  Rc4 {[%clk 0:00:34]} 39. Qf3 {[%clk 0:01:36]}  R8c7 {[%clk 0:00:32]} 40. Rd3 {[%clk 0:01:35]}  Ka8 {[%clk 0:00:32]} 41. Qf2 {[%clk 0:01:30]}  Ra4 {[%clk 0:00:30]} 42. b3 {[%clk 0:01:29]}  Rb4 {[%clk 0:00:29]} 43. Re1 {[%clk 0:01:29]}  Qc6 {[%clk 0:00:28]} 44. Qe2 {[%clk 0:01:20]}  Bc5 {[%clk 0:00:24]} 45. Qe8+ {[%clk 0:01:20]}  Qxe8 {[%clk 0:00:24]} 46. Rxe8+ {[%clk 0:01:20]}  Ka7 {[%clk 0:00:25]} 47. Ng3 {[%clk 0:01:20]}  a5 {[%clk 0:00:24]} 48. Ne4 {[%clk 0:01:20]}  Bb6 {[%clk 0:00:23]} 49. Ka2 {[%clk 0:01:19]}  a4 {[%clk 0:00:23]} 50. Ka3 {[%clk 0:01:19]}  Rb5 {[%clk 0:00:22]} 51. bxa4 {[%clk 0:01:18]}  Rb1 {[%clk 0:00:22]} 52. Nd2 {[%clk 0:01:16]}  Rc1 {[%clk 0:00:21]} 53. Nb3 {[%clk 0:01:09]}  R1xc2 {[%clk 0:00:20]} 54. f5 {[%clk 0:00:47]}  Rf2 {[%clk 0:00:16]} 55. Re4 {[%clk 0:00:45]}  Rcc2 {[%clk 0:00:14]} 56. Kb4 {[%clk 0:00:43]}  Ka6 {[%clk 0:00:11]} 57. a5 {[%clk 0:00:41]}  Ba7 {[%clk 0:00:11]} 58. Re6+ {[%clk 0:00:41]}  b6 {[%clk 0:00:11]} 59. Rxd4 {[%clk 0:00:38]}  Rc7 {[%clk 0:00:08]} 60. axb6 {[%clk 0:00:36]}  Bxb6 {[%clk 0:00:08]} 61. Rdd6 {[%clk 0:00:35]}  Rf4+ {[%clk 0:00:06]} 62. Ka3 {[%clk 0:00:35]}  Rb7 {[%clk 0:00:03]} 63. Nc5+ {[%clk 0:00:35]}  Kb5 {[%clk 0:00:03]} 64. Nxb7 {[%clk 0:00:36]}  Rf3+ {[%clk 0:00:04]} 65. Kb2 {[%clk 0:00:36]}  Bc7 {[%clk 0:00:02]} 66. Rd5+ {[%clk 0:00:35]}  Kc4 {[%clk 0:00:02]} 67. Rc5+ {[%clk 0:00:35]}  Kb4 {[%clk 0:00:03]} 68. Rxc7 {[%clk 0:00:36]}  Rf2+ {[%clk 0:00:03]} 69. Rc2 {[%clk 0:00:36]}  Rxc2+ {[%clk 0:00:03]} 1-0


[Site "https://www.chess.com"]